[Event "*** Titled Tuesday Blitz"]
[Site "Chess.com"]
[Date "2020.05.12"]
[Round "8"]
[White "SamuelGhimpu2003"]
[Black "Mizner"]
[Result "1-0"]
[WhiteElo "2715"]
[BlackElo "2526"]
[TimeControl "180+1"]
[EndTime "11:32:37 PDT"]
[Termination "SamuelGhimpu2003 won on time"]

1. e4 {[%clk 0:03:00.9]} 1... e6 {[%clk 0:03:00.2]} 2. f4 {[%clk 0:02:59.2]}
2... d5 {[%clk 0:03:01.1]} 3. e5 {[%clk 0:02:59.7]} 3... c5 {[%clk 0:02:59.8]}
4. Nf3 {[%clk 0:02:59.2]} 4... Nc6 {[%clk 0:02:57.7]} 5. c3 {[%clk 0:02:58.6]}
5... d4 {[%clk 0:02:41.5]} 6. Bd3 {[%clk 0:02:55]} 6... Nge7 {[%clk 0:02:36.5]}
7. Na3 {[%clk 0:02:53.3]} 7... Nd5 {[%clk 0:02:31.6]} 8. g3 {[%clk 0:02:51.1]}
8... dxc3 {[%clk 0:02:18.4]} 9. dxc3 {[%clk 0:02:52]} 9... Be7 {[%clk
0:02:17.6]} 10. O-O {[%clk 0:02:49.5]} 10... O-O {[%clk 0:02:16.9]} 11. Qe2
{[%clk 0:02:48.9]} 11... b6 {[%clk 0:02:05.8]} 12. Rd1 {[%clk 0:02:44.7]} 12...
Qc7 {[%clk 0:02:03.2]} 13. Nb5 {[%clk 0:02:44.1]} 13... Qb8 {[%clk 0:01:56.4]}
14. Be4 {[%clk 0:02:43.7]} 14... Bb7 {[%clk 0:01:13.8]} 15. c4 {[%clk
0:02:24.7]} 15... Ndb4 {[%clk 0:00:58.3]} 16. a3 {[%clk 0:02:23.8]} 16... Na6
{[%clk 0:00:57.5]} 17. Rd7 {[%clk 0:02:23.1]} 17... Rd8 {[%clk 0:00:53.8]} 18.
Bxc6 {[%clk 0:02:20.3]} 18... Bxc6 {[%clk 0:00:52.8]} 19. Rxe7 {[%clk
0:02:18.3]} 19... Kf8 {[%clk 0:00:52.9]} 20. Rxf7+ {[%clk 0:01:34.8]} 20... Kxf7
{[%clk 0:00:53.8]} 21. Ng5+ {[%clk 0:01:34.7]} 21... Kg8 {[%clk 0:00:54]} 22.
Nxe6 {[%clk 0:01:34.7]} 22... Rd7 {[%clk 0:00:48.2]} 23. Be3 {[%clk 0:01:31.3]}
23... Qb7 {[%clk 0:00:44.5]} 24. Nd6 {[%clk 0:01:27.7]} 24... Rxd6 {[%clk
0:00:38]} 25. exd6 {[%clk 0:01:26.5]} 25... Qd7 {[%clk 0:00:38]} 26. Qg4 {[%clk
0:01:18.2]} 26... Re8 {[%clk 0:00:37.7]} 27. f5 {[%clk 0:01:16.4]} 27... Ba8
{[%clk 0:00:27.2]} 28. Bh6 {[%clk 0:00:34.4]} 28... g6 {[%clk 0:00:24.3]} 29.
fxg6 {[%clk 0:00:34.3]} 29... Kh8 {[%clk 0:00:11.3]} 30. g7+ {[%clk 0:00:22]}
30... Kg8 {[%clk 0:00:11.1]} 31. Rf1 {[%clk 0:00:21.7]} 1-0

[Event "*** Titled Tuesday Blitz"]
[Site "Chess.com"]
[Date "2020.05.12"]
[Round "8"]
[White "AndrewDGreen"]
[Black "GM_LOADING"]
[Result "1-0"]
[WhiteElo "2296"]
[BlackElo "2441"]
[TimeControl "180+1"]
[EndTime "11:32:37 PDT"]
[Termination "AndrewDGreen won by resignation"]

1. e4 {[%clk 0:03:00.9]} 1... e6 {[%clk 0:02:57]} 2. Nf3 {[%clk 0:02:58.8]} 2...
d5 {[%clk 0:02:42.1]} 3. Nc3 {[%clk 0:02:58.5]} 3... Nf6 {[%clk 0:02:38.7]} 4.
e5 {[%clk 0:02:58.7]} 4... Nfd7 {[%clk 0:02:38.8]} 5. d4 {[%clk 0:02:59.2]} 5...
c5 {[%clk 0:02:39]} 6. dxc5 {[%clk 0:03:00.1]} 6... Nc6 {[%clk 0:02:38.2]} 7.
Bf4 {[%clk 0:03:00]} 7... Bxc5 {[%clk 0:02:36.8]} 8. Bd3 {[%clk 0:03:00.2]} 8...
a6 {[%clk 0:02:35.2]} 9. O-O {[%clk 0:02:55.6]} 9... Qc7 {[%clk 0:02:35.2]} 10.
Re1 {[%clk 0:02:50.7]} 10... h6 {[%clk 0:02:35]} 11. Bg3 {[%clk 0:02:37.5]}
11... Be7 {[%clk 0:02:30.5]} 12. Nxd5 {[%clk 0:02:29]} 12... exd5 {[%clk
0:02:27.3]} 13. e6 {[%clk 0:02:29.3]} 13... Qb6 {[%clk 0:02:27.5]} 14. exd7+
{[%clk 0:02:24.3]} 14... Bxd7 {[%clk 0:02:28.4]} 15. Ne5 {[%clk 0:02:18.3]}
15... Be6 {[%clk 0:02:24.1]} 16. Qe2 {[%clk 0:01:59.5]} 16... Nd4 {[%clk
0:02:15.2]} 17. Qe3 {[%clk 0:01:59.3]} 17... Bc5 {[%clk 0:02:08.3]} 18. Qf4
{[%clk 0:01:56.1]} 18... O-O {[%clk 0:01:56.8]} 19. c3 {[%clk 0:01:47.4]} 19...
Nc6 {[%clk 0:01:56.8]} 20. Nxc6 {[%clk 0:01:31.5]} 20... bxc6 {[%clk 0:01:49.4]}
21. b4 {[%clk 0:01:12.7]} 21... Be7 {[%clk 0:01:46.4]} 22. Qc7 {[%clk
0:00:54.8]} 22... Qxc7 {[%clk 0:01:29.2]} 23. Bxc7 {[%clk 0:00:55.7]} 23... Rfc8
{[%clk 0:01:22.4]} 24. Be5 {[%clk 0:00:50.7]} 24... c5 {[%clk 0:01:19.7]} 25. a3
{[%clk 0:00:46.4]} 25... Bf8 {[%clk 0:01:13.9]} 26. Rac1 {[%clk 0:00:43.9]}
26... Bd7 {[%clk 0:01:06.9]} 27. h4 {[%clk 0:00:40.8]} 27... a5 {[%clk 0:01:07]}
28. Rb1 {[%clk 0:00:31.6]} 28... f6 {[%clk 0:00:38.1]} 29. Bf4 {[%clk
0:00:28.6]} 29... d4 {[%clk 0:00:34.8]} 30. Bc4+ {[%clk 0:00:19.2]} 30... Kh8
{[%clk 0:00:34.3]} 31. Bd5 {[%clk 0:00:19.6]} 31... Ra7 {[%clk 0:00:30]} 32. b5
{[%clk 0:00:19.9]} 32... Rd8 {[%clk 0:00:18.4]} 33. b6 {[%clk 0:00:19.4]} 33...
Ra6 {[%clk 0:00:17]} 34. b7 {[%clk 0:00:18.4]} 1-0

[Event "*** Titled Tuesday Blitz"]
[Site "Chess.com"]
[Date "2020.05.12"]
[Round "8"]
[White "Tooweak2slow03"]
[Black "crescentmoon2411"]
[Result "1/2-1/2"]
[WhiteElo "2629"]
[BlackElo "2792"]
[TimeControl "180+1"]
[EndTime "11:32:39 PDT"]
[Termination "Game drawn by agreement"]

1. e4 {[%clk 0:03:00.9]} 1... c6 {[%clk 0:03:00.2]} 2. Nf3 {[%clk 0:03:01]} 2...
d5 {[%clk 0:03:00.6]} 3. Nc3 {[%clk 0:03:01.5]} 3... dxe4 {[%clk 0:02:49.9]} 4.
Nxe4 {[%clk 0:03:02.4]} 4... Nf6 {[%clk 0:02:48.5]} 5. Qe2 {[%clk 0:03:02.1]}
5... Nxe4 {[%clk 0:02:45.7]} 6. Qxe4 {[%clk 0:03:03]} 6... Qd5 {[%clk
0:02:38.8]} 7. Qf4 {[%clk 0:03:03.1]} 7... Qf5 {[%clk 0:02:36.6]} 8. Qe3 {[%clk
0:03:03.6]} 8... Qe6 {[%clk 0:02:34.2]} 9. b3 {[%clk 0:03:03.1]} 9... Qxe3+
{[%clk 0:02:32.9]} 10. fxe3 {[%clk 0:03:04]} 10... Bf5 {[%clk 0:02:27.1]} 11. d3
{[%clk 0:02:59.9]} 11... Nd7 {[%clk 0:02:22.2]} 12. e4 {[%clk 0:02:59.5]} 12...
Bg6 {[%clk 0:02:16.8]} 13. Bb2 {[%clk 0:02:58.9]} 13... f6 {[%clk 0:02:13.3]}
14. Be2 {[%clk 0:02:50]} 14... e5 {[%clk 0:02:13]} 15. Nh4 {[%clk 0:02:48.6]}
15... Bb4+ {[%clk 0:02:09.9]} 16. c3 {[%clk 0:02:48.1]} 16... Bc5 {[%clk
0:02:06.7]} 17. O-O-O {[%clk 0:02:00.3]} 17... O-O-O {[%clk 0:01:50.9]} 18. d4
{[%clk 0:01:57.2]} 18... exd4 {[%clk 0:01:48.2]} 19. cxd4 {[%clk 0:01:58.1]}
19... Bd6 {[%clk 0:01:48.4]} 20. Nxg6 {[%clk 0:01:57]} 20... hxg6 {[%clk
0:01:48.4]} 21. h3 {[%clk 0:01:55]} 21... Rhe8 {[%clk 0:01:39.9]} 22. Bf3 {[%clk
0:01:49.7]} 22... c5 {[%clk 0:01:25.9]} 23. Kb1 {[%clk 0:01:46.9]} 23... Kb8
{[%clk 0:01:14.9]} 24. Rhe1 {[%clk 0:01:42.1]} 24... cxd4 {[%clk 0:01:14.8]} 25.
Bxd4 {[%clk 0:01:41.2]} 25... Be5 {[%clk 0:01:09.5]} 26. Bf2 {[%clk 0:01:35.6]}
26... Nb6 {[%clk 0:00:59.5]} 27. Bxb6 {[%clk 0:01:35]} 27... axb6 {[%clk
0:00:58.5]} 28. Rxd8+ {[%clk 0:01:32.6]} 28... Rxd8 {[%clk 0:00:57.4]} 29. Rd1
{[%clk 0:01:33.5]} 29... Bd4 {[%clk 0:00:49.5]} 30. a4 {[%clk 0:01:30]} 30...
Kc7 {[%clk 0:00:46.1]} 31. Rd3 {[%clk 0:01:26.4]} 31... g5 {[%clk 0:00:37.9]}
32. Rd1 {[%clk 0:01:23]} 32... b5 {[%clk 0:00:33.4]} 33. axb5 {[%clk 0:01:21.3]}
33... Kb6 {[%clk 0:00:33.1]} 34. Be2 {[%clk 0:01:19.6]} 34... Kc5 {[%clk
0:00:27.1]} 35. Bc4 {[%clk 0:01:16.9]} 35... Ra8 {[%clk 0:00:23.1]} 36. Rd2
{[%clk 0:01:12.7]} 36... Ra1+ {[%clk 0:00:18.7]} 37. Kc2 {[%clk 0:01:12.9]}
37... b6 {[%clk 0:00:14]} 38. Kd3 {[%clk 0:01:08.4]} 38... Be5 {[%clk
0:00:13.3]} 39. Ke2 {[%clk 0:01:07.4]} 39... Bd4 {[%clk 0:00:11.9]} 40. Kd3
{[%clk 0:01:07.6]} 40... Rc1 {[%clk 0:00:11.2]} 41. Ke2 {[%clk 0:01:05]} 41...
Rc3 {[%clk 0:00:09.4]} 42. Rd3 {[%clk 0:01:03.6]} 42... Rc2+ {[%clk 0:00:09.3]}
43. Rd2 {[%clk 0:01:03.9]} 43... Rc3 {[%clk 0:00:09.3]} 44. Rd3 {[%clk
0:01:04.1]} 44... Rc1 {[%clk 0:00:08.8]} 45. Rd1 {[%clk 0:01:03.8]} 45... Rxd1
{[%clk 0:00:07.1]} 46. Kxd1 {[%clk 0:01:04]} 46... Be5 {[%clk 0:00:06.9]} 47.
Ke2 {[%clk 0:01:02.8]} 47... Kd4 {[%clk 0:00:07.8]} 48. Kf3 {[%clk 0:01:02.6]}
48... Bd6 {[%clk 0:00:06.6]} 1/2-1/2

[Event "*** Titled Tuesday Blitz"]
[Site "Chess.com"]
[Date "2020.05.12"]
[Round "8"]
[White "nicolochessit"]
[Black "DaggiGretarsson"]
[Result "1-0"]
[WhiteElo "2432"]
[BlackElo "2557"]
[TimeControl "180+1"]
[EndTime "11:32:40 PDT"]
[Termination "nicolochessit won on time"]

1. d4 {[%clk 0:03:00.9]} 1... d5 {[%clk 0:02:58.1]} 2. Nc3 {[%clk 0:03:01.1]}
2... Bf5 {[%clk 0:02:52]} 3. Bg5 {[%clk 0:02:56.6]} 3... h6 {[%clk 0:02:48.9]}
4. Bh4 {[%clk 0:02:55.7]} 4... c6 {[%clk 0:02:47.4]} 5. Bg3 {[%clk 0:02:52.2]}
5... Qb6 {[%clk 0:02:41.3]} 6. Rb1 {[%clk 0:02:51.3]} 6... Nd7 {[%clk
0:02:37.5]} 7. e3 {[%clk 0:02:51.4]} 7... Ngf6 {[%clk 0:02:33.7]} 8. Nf3 {[%clk
0:02:50.7]} 8... e6 {[%clk 0:02:31.8]} 9. Bd3 {[%clk 0:02:50.2]} 9... Ne4 {[%clk
0:02:25.9]} 10. O-O {[%clk 0:02:46.7]} 10... Qa5 {[%clk 0:02:21.5]} 11. Bxe4
{[%clk 0:02:43.5]} 11... Bxe4 {[%clk 0:02:13.8]} 12. Nxe4 {[%clk 0:02:43]} 12...
dxe4 {[%clk 0:02:12.8]} 13. Nd2 {[%clk 0:02:43.9]} 13... Qxa2 {[%clk 0:01:52.5]}
14. Nxe4 {[%clk 0:02:25.8]} 14... Qd5 {[%clk 0:01:51]} 15. Qf3 {[%clk
0:02:18.6]} 15... Be7 {[%clk 0:01:30.1]} 16. b3 {[%clk 0:02:06.8]} 16... Nf6
{[%clk 0:01:04.3]} 17. Nxf6+ {[%clk 0:02:03.2]} 17... Bxf6 {[%clk 0:01:04]} 18.
c4 {[%clk 0:02:03.3]} 18... Qxf3 {[%clk 0:00:48.8]} 19. gxf3 {[%clk 0:02:04.2]}
19... Kd7 {[%clk 0:00:48.3]} 20. b4 {[%clk 0:02:04.3]} 20... b5 {[%clk
0:00:42.6]} 21. Rfc1 {[%clk 0:01:56.6]} 21... Rhc8 {[%clk 0:00:39.4]} 22. Rc2
{[%clk 0:01:41.1]} 22... Be7 {[%clk 0:00:37.8]} 23. Kf1 {[%clk 0:01:27.7]} 23...
a6 {[%clk 0:00:23.6]} 24. Ke2 {[%clk 0:01:26.9]} 24... Ra7 {[%clk 0:00:22.6]}
25. Kd3 {[%clk 0:01:26.6]} 25... Rca8 {[%clk 0:00:11.9]} 26. Ra2 {[%clk
0:01:12.1]} 26... a5 {[%clk 0:00:09.6]} 27. cxb5 {[%clk 0:01:06]} 27... cxb5
{[%clk 0:00:08.8]} 28. bxa5 {[%clk 0:01:05.2]} 28... Rxa5 {[%clk 0:00:08.7]} 29.
Rc2 {[%clk 0:01:00.2]} 29... Ra3+ {[%clk 0:00:06.2]} 30. Ke2 {[%clk 0:00:59.6]}
30... Ra2 {[%clk 0:00:05.7]} 31. Rc1 {[%clk 0:00:57.2]} 31... b4 {[%clk
0:00:05.4]} 32. Kd3 {[%clk 0:00:57.1]} 32... R8a3+ {[%clk 0:00:03.8]} 33. Kc4
{[%clk 0:00:47.5]} 33... b3 {[%clk 0:00:03.6]} 34. Rxa2 {[%clk 0:00:40.3]} 34...
bxa2 {[%clk 0:00:03.3]} 35. Ra1 {[%clk 0:00:40.7]} 35... Kc6 {[%clk 0:00:02.9]}
36. e4 {[%clk 0:00:39.4]} 36... Bd8 {[%clk 0:00:01.5]} 37. d5+ {[%clk
0:00:37.7]} 37... exd5+ {[%clk 0:00:01.3]} 38. exd5+ {[%clk 0:00:38.6]} 38...
Kd7 {[%clk 0:00:01.5]} 39. Be5 {[%clk 0:00:38.9]} 1-0

[Event "*** Titled Tuesday Blitz"]
[Site "Chess.com"]
[Date "2020.05.12"]
[Round "8"]
[White "Bossche-CM"]
[Black "Riptide27"]
[Result "0-1"]
[WhiteElo "2437"]
[BlackElo "2590"]
[TimeControl "180+1"]
[EndTime "11:32:41 PDT"]
[Termination "Riptide27 won by resignation"]

1. e4 {[%clk 0:03:00.9]} 1... e5 {[%clk 0:02:59.7]} 2. Nf3 {[%clk 0:03:00.4]}
2... Nc6 {[%clk 0:03:00.3]} 3. Nc3 {[%clk 0:02:59.4]} 3... Nf6 {[%clk
0:02:58.1]} 4. d4 {[%clk 0:02:59.2]} 4... exd4 {[%clk 0:02:57.8]} 5. Nxd4 {[%clk
0:03:00.1]} 5... Bc5 {[%clk 0:02:57.9]} 6. Be3 {[%clk 0:02:58.7]} 6... Bb6
{[%clk 0:02:54.6]} 7. Nxc6 {[%clk 0:02:58.3]} 7... bxc6 {[%clk 0:02:52.9]} 8.
Bxb6 {[%clk 0:02:58.8]} 8... axb6 {[%clk 0:02:52.1]} 9. Bd3 {[%clk 0:02:59.4]}
9... O-O {[%clk 0:02:50.3]} 10. O-O {[%clk 0:02:59.8]} 10... d5 {[%clk
0:02:49.2]} 11. e5 {[%clk 0:02:54.4]} 11... Ng4 {[%clk 0:02:47]} 12. h3 {[%clk
0:02:28.2]} 12... Nxe5 {[%clk 0:02:45.6]} 13. Bxh7+ {[%clk 0:02:28]} 13... Kxh7
{[%clk 0:02:46.5]} 14. Qh5+ {[%clk 0:02:28]} 14... Kg8 {[%clk 0:02:46.3]} 15.
Qxe5 {[%clk 0:02:28.6]} 15... Re8 {[%clk 0:02:46.3]} 16. Qg3 {[%clk 0:02:21.7]}
16... Bf5 {[%clk 0:02:43]} 17. Rac1 {[%clk 0:02:17.3]} 17... d4 {[%clk
0:02:29.3]} 18. Rfd1 {[%clk 0:02:15.1]} 18... Qf6 {[%clk 0:02:13.1]} 19. Nb1
{[%clk 0:02:10.2]} 19... Re7 {[%clk 0:02:10.9]} 20. a3 {[%clk 0:01:57.2]} 20...
Rae8 {[%clk 0:02:02.4]} 21. Nd2 {[%clk 0:01:56.6]} 21... Re2 {[%clk 0:01:51.2]}
22. Nf3 {[%clk 0:01:33.3]} 22... c5 {[%clk 0:01:47.6]} 23. Qxc7 {[%clk
0:01:23.2]} 23... Bxc2 {[%clk 0:01:37.6]} 24. Rd2 {[%clk 0:01:08.2]} 24... Rxd2
{[%clk 0:01:36]} 25. Nxd2 {[%clk 0:01:09.1]} 25... Re2 {[%clk 0:01:33.4]} 26.
Nf3 {[%clk 0:00:40.9]} 26... Be4 {[%clk 0:01:32.5]} 27. Qg3 {[%clk 0:00:22.8]}
27... Bxf3 {[%clk 0:01:31.6]} 28. gxf3 {[%clk 0:00:23.7]} 28... d3 {[%clk
0:01:24]} 29. Kf1 {[%clk 0:00:20.1]} 29... Qxb2 {[%clk 0:01:18.2]} 30. Rd1
{[%clk 0:00:19.7]} 30... Qc2 {[%clk 0:01:17.9]} 31. Ra1 {[%clk 0:00:18.7]} 31...
Re6 {[%clk 0:00:50.1]} 32. Qb8+ {[%clk 0:00:16.6]} 32... Kh7 {[%clk 0:00:49.5]}
33. Qf4 {[%clk 0:00:10.2]} 33... d2 {[%clk 0:00:45.7]} 34. Kg2 {[%clk
0:00:03.9]} 34... d1=Q {[%clk 0:00:36.4]} 35. Rxd1 {[%clk 0:00:02.9]} 35... Qxd1
{[%clk 0:00:37.3]} 36. Qh4+ {[%clk 0:00:02.2]} 36... Rh6 {[%clk 0:00:37.2]} 37.
Qe4+ {[%clk 0:00:02.2]} 37... Rg6+ {[%clk 0:00:37.4]} 0-1

[Event "*** Titled Tuesday Blitz"]
[Site "Chess.com"]
[Date "2020.05.12"]
[Round "8"]
[White "Aikiigm"]
[Black "Vusatiuk_Vladimir"]
[Result "1-0"]
[WhiteElo "2498"]
[BlackElo "2329"]
[TimeControl "180+1"]
[EndTime "11:32:43 PDT"]
[Termination "Aikiigm won by resignation"]

1. c4 {[%clk 0:03:00.9]} 1... Nf6 {[%clk 0:02:58.6]} 2. g3 {[%clk 0:03:00.9]}
2... e5 {[%clk 0:02:57.1]} 3. Bg2 {[%clk 0:03:01.8]} 3... h6 {[%clk 0:02:57.6]}
4. Nc3 {[%clk 0:03:02.5]} 4... Bb4 {[%clk 0:02:58.1]} 5. d3 {[%clk 0:02:59.1]}
5... Bxc3+ {[%clk 0:02:56.3]} 6. bxc3 {[%clk 0:02:59]} 6... O-O {[%clk
0:02:55.7]} 7. Nf3 {[%clk 0:02:57.9]} 7... Re8 {[%clk 0:02:55.2]} 8. O-O {[%clk
0:02:56.9]} 8... c6 {[%clk 0:02:55.7]} 9. a4 {[%clk 0:02:52.6]} 9... d5 {[%clk
0:02:55.6]} 10. cxd5 {[%clk 0:02:52.2]} 10... cxd5 {[%clk 0:02:56.5]} 11. a5
{[%clk 0:02:52.7]} 11... Nc6 {[%clk 0:02:55.9]} 12. Qa4 {[%clk 0:02:42.2]} 12...
e4 {[%clk 0:02:52.6]} 13. Nd4 {[%clk 0:02:40.1]} 13... Bd7 {[%clk 0:02:48.5]}
14. a6 {[%clk 0:02:40.2]} 14... Nxd4 {[%clk 0:02:41.4]} 15. Qxd4 {[%clk
0:02:38.4]} 15... b6 {[%clk 0:02:37.2]} 16. c4 {[%clk 0:02:24.8]} 16... Bc6
{[%clk 0:02:31.1]} 17. c5 {[%clk 0:02:24.4]} 17... exd3 {[%clk 0:01:47.9]} 18.
exd3 {[%clk 0:02:22.7]} 18... Nd7 {[%clk 0:01:24.9]} 19. Bb2 {[%clk 0:02:21.1]}
19... Qg5 {[%clk 0:01:17.6]} 20. h4 {[%clk 0:02:16.9]} 20... Qf6 {[%clk
0:00:59.2]} 21. Qxf6 {[%clk 0:02:12.4]} 21... Nxf6 {[%clk 0:01:00.1]} 22. Bxf6
{[%clk 0:02:11.4]} 22... gxf6 {[%clk 0:01:01]} 23. cxb6 {[%clk 0:02:11.8]} 23...
axb6 {[%clk 0:01:01.9]} 24. Rfb1 {[%clk 0:02:10.4]} 24... b5 {[%clk 0:00:54.8]}
25. Rc1 {[%clk 0:02:08.4]} 25... Re6 {[%clk 0:00:52.5]} 26. Rc5 {[%clk
0:02:06.4]} 26... Rd6 {[%clk 0:00:49.2]} 27. a7 {[%clk 0:02:06]} 27... Kf8
{[%clk 0:00:44.5]} 28. Rxc6 {[%clk 0:01:30.1]} 28... Rxc6 {[%clk 0:00:44.2]} 29.
Bxd5 {[%clk 0:01:29.9]} 29... Rcc8 {[%clk 0:00:44.6]} 30. Bxa8 {[%clk
0:01:28.9]} 30... Rxa8 {[%clk 0:00:45.5]} 31. Kf1 {[%clk 0:01:26.6]} 31... Ke7
{[%clk 0:00:41.9]} 32. Ke2 {[%clk 0:01:26.5]} 32... Kd6 {[%clk 0:00:41.1]} 33.
Kd2 {[%clk 0:01:26.7]} 33... Kc5 {[%clk 0:00:40.6]} 34. Kc3 {[%clk 0:01:26.9]}
34... b4+ {[%clk 0:00:25.9]} 35. Kb3 {[%clk 0:01:26.8]} 35... Kb5 {[%clk
0:00:25.9]} 36. Ra4 {[%clk 0:01:26.7]} 36... Kc5 {[%clk 0:00:24.9]} 37. h5
{[%clk 0:01:19.1]} 37... f5 {[%clk 0:00:24.3]} 38. Ra5+ {[%clk 0:01:18.4]} 38...
Kd4 {[%clk 0:00:22.5]} 39. Kxb4 {[%clk 0:01:17.3]} 39... Kxd3 {[%clk 0:00:23.4]}
40. Kb5 {[%clk 0:01:14.4]} 40... Ke2 {[%clk 0:00:23.8]} 41. Ra2+ {[%clk
0:01:14.3]} 41... Kf3 {[%clk 0:00:21.4]} 42. Kb6 {[%clk 0:01:14.7]} 42... Re8
{[%clk 0:00:15.7]} 43. Kb7 {[%clk 0:01:12.2]} 43... Re7+ {[%clk 0:00:14.9]} 44.
Kc6 {[%clk 0:01:12.2]} 44... Rxa7 {[%clk 0:00:10.3]} 45. Rxa7 {[%clk 0:01:11.6]}
45... Kxf2 {[%clk 0:00:11.2]} 46. Ra3 {[%clk 0:01:11.2]} 46... Kg2 {[%clk
0:00:10.2]} 47. Kd5 {[%clk 0:01:11]} 47... Kh3 {[%clk 0:00:10.5]} 48. Ke5 {[%clk
0:01:11.1]} 48... Kg4 {[%clk 0:00:11.4]} 49. Ra4+ {[%clk 0:01:10.9]} 49... Kg5
{[%clk 0:00:10.6]} 50. Rf4 {[%clk 0:01:08.3]} 50... Kxh5 {[%clk 0:00:11]} 51.
Rxf5+ {[%clk 0:01:05.9]} 51... Kg4 {[%clk 0:00:10.7]} 52. Rxf7 {[%clk
0:01:05.9]} 52... Kxg3 {[%clk 0:00:08.6]} 53. Rh7 {[%clk 0:01:04.8]} 1-0

[Event "*** Titled Tuesday Blitz"]
[Site "Chess.com"]
[Date "2020.05.12"]
[Round "8"]
[White "igorcadilhac"]
[Black "top_bu_tz"]
[Result "1-0"]
[WhiteElo "2346"]
[BlackElo "2212"]
[TimeControl "180+1"]
[EndTime "11:32:43 PDT"]
[Termination "igorcadilhac won by checkmate"]

1. e4 {[%clk 0:03:00.9]} 1... e5 {[%clk 0:03:00]} 2. Nf3 {[%clk 0:03:00.9]} 2...
Nc6 {[%clk 0:03:00.6]} 3. Nc3 {[%clk 0:03:01.5]} 3... Nf6 {[%clk 0:03:00.4]} 4.
Bb5 {[%clk 0:03:02]} 4... d6 {[%clk 0:02:57.1]} 5. O-O {[%clk 0:03:00.8]} 5...
Be7 {[%clk 0:02:57]} 6. d4 {[%clk 0:02:59.8]} 6... exd4 {[%clk 0:02:57.9]} 7.
Nxd4 {[%clk 0:03:00.3]} 7... Bd7 {[%clk 0:02:58.4]} 8. Bxc6 {[%clk 0:02:48.3]}
8... bxc6 {[%clk 0:02:59.3]} 9. Qf3 {[%clk 0:02:48.5]} 9... c5 {[%clk 0:02:56]}
10. Nf5 {[%clk 0:02:47.7]} 10... O-O {[%clk 0:02:52.4]} 11. Bg5 {[%clk
0:02:40.1]} 11... h6 {[%clk 0:02:39.9]} 12. Bh4 {[%clk 0:01:24.5]} 12... Rb8
{[%clk 0:02:18.5]} 13. b3 {[%clk 0:01:23.9]} 13... Re8 {[%clk 0:01:44.9]} 14.
Rae1 {[%clk 0:01:22.9]} 14... Bxf5 {[%clk 0:01:39.1]} 15. exf5 {[%clk
0:01:14.2]} 15... Nd7 {[%clk 0:01:26.6]} 16. Bxe7 {[%clk 0:01:01.4]} 16... Rxe7
{[%clk 0:01:27.5]} 17. Nd5 {[%clk 0:01:01.8]} 17... Re5 {[%clk 0:01:22.2]} 18.
c4 {[%clk 0:00:50.5]} 18... c6 {[%clk 0:01:08.6]} 19. Ne3 {[%clk 0:00:49.8]}
19... Qc7 {[%clk 0:01:03.7]} 20. Ng4 {[%clk 0:00:49.2]} 20... Ree8 {[%clk
0:00:59.4]} 21. f6 {[%clk 0:00:48.4]} 21... Ne5 {[%clk 0:00:57.7]} 22. Rxe5
{[%clk 0:00:38.4]} 22... Rxe5 {[%clk 0:00:58.6]} 23. fxg7 {[%clk 0:00:29.9]}
23... f5 {[%clk 0:00:44.1]} 24. Nxe5 {[%clk 0:00:26.9]} 24... dxe5 {[%clk
0:00:45]} 25. Qxf5 {[%clk 0:00:27.4]} 25... Qxg7 {[%clk 0:00:42.4]} 26. Re1
{[%clk 0:00:24.9]} 26... Re8 {[%clk 0:00:42]} 27. Qh5 {[%clk 0:00:22.3]} 27...
Re7 {[%clk 0:00:39.6]} 28. Qf3 {[%clk 0:00:21.1]} 28... e4 {[%clk 0:00:36.8]}
29. Qg3 {[%clk 0:00:21.1]} 29... Qxg3 {[%clk 0:00:34.5]} 30. hxg3 {[%clk
0:00:21.3]} 30... Kf7 {[%clk 0:00:32.8]} 31. f3 {[%clk 0:00:19.8]} 31... e3
{[%clk 0:00:18.4]} 32. Kf1 {[%clk 0:00:20]} 32... Rd7 {[%clk 0:00:16.1]} 33.
Rxe3 {[%clk 0:00:19.6]} 33... Rd2 {[%clk 0:00:16.3]} 34. Re2 {[%clk 0:00:19.8]}
34... Rd1+ {[%clk 0:00:17]} 35. Kf2 {[%clk 0:00:20.3]} 35... Kf6 {[%clk
0:00:16.4]} 36. g4 {[%clk 0:00:19.8]} 36... Kg5 {[%clk 0:00:16.1]} 37. Re5+
{[%clk 0:00:19.6]} 37... Kf6 {[%clk 0:00:16.5]} 38. Rxc5 {[%clk 0:00:19.9]}
38... Rd2+ {[%clk 0:00:17.2]} 39. Kg3 {[%clk 0:00:20.2]} 39... Rxa2 {[%clk
0:00:18.1]} 40. Rxc6+ {[%clk 0:00:20.5]} 40... Kg5 {[%clk 0:00:18.7]} 41. f4#
{[%clk 0:00:19.4]} 1-0

[Event "*** Titled Tuesday Blitz"]
[Site "Chess.com"]
[Date "2020.05.12"]
[Round "8"]
[White "Rhinos1"]
[Black "eightbyeightchess"]
[Result "1-0"]
[WhiteElo "2213"]
[BlackElo "2375"]
[TimeControl "180+1"]
[EndTime "11:32:45 PDT"]
[Termination "Rhinos1 won by resignation"]

1. e4 {[%clk 0:02:57.2]} 1... e6 {[%clk 0:02:58.5]} 2. d3 {[%clk 0:02:56.9]}
2... d5 {[%clk 0:02:59]} 3. Nd2 {[%clk 0:02:57.8]} 3... Ne7 {[%clk 0:02:57.6]}
4. g3 {[%clk 0:02:58]} 4... g6 {[%clk 0:02:57.9]} 5. Bg2 {[%clk 0:02:58.3]} 5...
Bg7 {[%clk 0:02:58.4]} 6. f4 {[%clk 0:02:58.4]} 6... O-O {[%clk 0:02:55.9]} 7.
Ngf3 {[%clk 0:02:58.5]} 7... b6 {[%clk 0:02:56.3]} 8. O-O {[%clk 0:02:57.5]}
8... Bb7 {[%clk 0:02:56.9]} 9. Re1 {[%clk 0:02:51.8]} 9... Nd7 {[%clk
0:02:55.9]} 10. c3 {[%clk 0:02:49.9]} 10... Nc5 {[%clk 0:02:54.6]} 11. Qc2
{[%clk 0:02:43.8]} 11... dxe4 {[%clk 0:02:24.9]} 12. dxe4 {[%clk 0:02:44.7]}
12... Nd3 {[%clk 0:02:23.1]} 13. Re3 {[%clk 0:02:40.4]} 13... Nxc1 {[%clk
0:02:21.7]} 14. Rxc1 {[%clk 0:02:41.3]} 14... Qe8 {[%clk 0:02:16.3]} 15. Nh4
{[%clk 0:02:25.3]} 15... Rd8 {[%clk 0:02:10]} 16. Ndf3 {[%clk 0:02:15.4]} 16...
Qb5 {[%clk 0:02:02.4]} 17. Rce1 {[%clk 0:02:09.8]} 17... Rd7 {[%clk 0:02:00.2]}
18. a4 {[%clk 0:02:05.8]} 18... Qh5 {[%clk 0:01:38]} 19. Ng5 {[%clk 0:01:47.4]}
19... Rfd8 {[%clk 0:01:29.5]} 20. Bf3 {[%clk 0:01:46.7]} 20... Qh6 {[%clk
0:01:29.6]} 21. R3e2 {[%clk 0:01:36.7]} 21... Bf6 {[%clk 0:01:27]} 22. e5 {[%clk
0:01:00.5]} 22... Bxg5 {[%clk 0:01:26.5]} 23. fxg5 {[%clk 0:00:59.9]} 23... Qxg5
{[%clk 0:01:25.3]} 24. Bxb7 {[%clk 0:00:59.5]} 24... Rd2 {[%clk 0:01:25]} 25.
Qe4 {[%clk 0:00:52.4]} 25... Rxe2 {[%clk 0:01:09]} 26. Rxe2 {[%clk 0:00:53.3]}
26... Qc1+ {[%clk 0:01:04.3]} 27. Kg2 {[%clk 0:00:53.3]} 27... Rd1 {[%clk
0:01:03.6]} 28. Qe3 {[%clk 0:00:52.2]} 28... Qa1 {[%clk 0:00:55.6]} 29. Rf2
{[%clk 0:00:29.8]} 29... Qxa4 {[%clk 0:00:40.3]} 30. Qf3 {[%clk 0:00:29.2]}
30... Nf5 {[%clk 0:00:37.6]} 31. Nxf5 {[%clk 0:00:29.7]} 31... gxf5 {[%clk
0:00:26]} 32. Bc6 {[%clk 0:00:26]} 32... Qc4 {[%clk 0:00:22.5]} 33. Qxd1 {[%clk
0:00:24.8]} 33... Qxc6+ {[%clk 0:00:20.8]} 34. Qf3 {[%clk 0:00:25.4]} 34... Qb5
{[%clk 0:00:20.2]} 35. Rd2 {[%clk 0:00:25.1]} 35... Kf8 {[%clk 0:00:18.8]} 36.
Qf4 {[%clk 0:00:24.3]} 36... Qc6+ {[%clk 0:00:16]} 37. Kh3 {[%clk 0:00:23.9]}
37... Ke8 {[%clk 0:00:11.8]} 38. Qg5 {[%clk 0:00:23.4]} 1-0